[Event "17th Prague Open 2018"]
[Site "Prague"]
[Date "2018.01.15"]
[Round "5"]
[White "Mishuchkov, Nikolai M"]
[Black "Tarun V Kanth"]
[Result "1/2-1/2"]
[ECO "A46"]
[WhiteElo "2303"]
[BlackElo "2077"]
[Annotator "NA RC"]
[PlyCount "47"]
[EventDate "2018.??.??"]
[EventType "swiss"]
[EventCountry "CZE"]
[SourceTitle "playchess.com"]
[Source "ChessBase"]
[SourceQuality "1"]
[TimeControl "40/5400+30:1800+30"]

{[%evp 15,46,7,32767,32767,-6,-3,19,32767,5,10,18,0,32767,32767,32767,32767,32767,32767,32767,32767,0,0,32767,-48,-39,-33,-19,-25,-28,-24,-27,-52,-10]} 1. d4 {[%emt 0:00:00]} Nf6 {[%emt 0:00:13]} 2. Nf3 {[%emt 0:00:00]} e6 {[%emt 0:00:09]} 3. c4 {[%emt 0:02:48]} d5 {[%emt 0:00:12]} 4. e3 {[%emt 0:00:14]} Be7 {[%emt 0:00:19]} 5. Bd3 {[%emt 0:00:19]} O-O {[%emt 0:01:10]} 6. O-O {[%emt 0:00:13]} b6 {[%emt 0:00:31]} 7. b3 {[%emt 0:01:38]} Bb7 {[%emt 0:00:17]} 8. Bb2 {[%emt 0:00:28]} Nbd7 {[%emt 0:00:37] E14: Queen's Indian: Classical Variation (4 e3)} 9. cxd5 {[%emt 0:00:27]} (9. Nbd2 c5 10. Rc1 Rc8 11. Qe2 cxd4 12. Nxd4 dxc4 13. Nxc4 Rc5 14. Rfd1 Qa8 15. f3 Re8 16. Ba3 Rxc4 17. Rxc4 Bxa3 18. Nb5 {1-0 (62) Nakamura,H (2785)-Karjakin,S (2781) Paris 2017}) 9... Nxd5 {[%emt 0:01:39]} 10. Nc3 {[%emt 0:03:52]} N7f6 $146 {[%emt 0:03:51]} ({Predecessor:} 10... c5 11. Nxd5 exd5 12. Rc1 Rc8 13. Ne5 Nxe5 14. dxe5 Rc6 15. Qe2 Rh6 16. e4 d4 17. f4 Qb8 18. Rc2 Kh8 19. Bc1 Rc6 {0-1 (78) Sliwa,B (2280)-Kasperek,W (2220) Myslenice 1988}) 11. Qe2 {[%emt 0:22:34]} Nxc3 {[%emt 0:04:54]} 12. Bxc3 {[%emt 0:00:06]} Qd5 {[%emt 0:05:18]} 13. Ba6 {[%emt 0:01:25]} Ne4 {[%emt 0:02:16]} 14. Bb2 {[%emt 0:01:06]} Rfd8 {[%emt 0:09:56]} 15. Bxb7 {[%emt 0:04:26]} Qxb7 {[%emt 0:00:12]} 16. Rfd1 {[%emt 0:00:39]} Rac8 {[%emt 0:01:23]} 17. Ne5 {[%emt 0:03:42]} c5 {[%emt 0:07:48]} 18. dxc5 {[%emt 0:06:39]} Nxc5 {[%emt 0:01:22]} 19. Qf3 {[%emt 0:08:10]} Qxf3 {[%emt 0:01:04]} 20. gxf3 {[%emt 0:02:36]} f6 {[%emt 0:05:22]} 21. Rxd8+ {[%emt 0:01:41]} Bxd8 {[%emt 0:00:58]} 22. Nc4 {[%emt 0:00:26]} Be7 $11 {[%emt 0:04:31]} 23. Rd1 {[%emt 0:02:18]} Rd8 {[%emt 0:02:06]} 24. Rxd8+ 1/2-1/2

[Event "17th Prague Open 2018"]
[Site "Prague"]
[Date "2018.01.18"]
[Round "8"]
[White "Moehn, Hans"]
[Black "Levitskiy, Andrey"]
[Result "1-0"]
[ECO "A46"]
[WhiteElo "2378"]
[BlackElo "2155"]
[Annotator "ChessBase"]
[PlyCount "161"]
[EventDate "2018.??.??"]
[EventType "swiss"]
[EventCountry "CZE"]
[SourceTitle "playchess.com"]
[Source "ChessBase"]
[SourceQuality "1"]
[TimeControl "40/5400+30:1800+30"]

1. d4 {[%emt 0:00:00]} Nf6 {[%emt 0:00:22]} 2. Nf3 {[%emt 0:00:00]} e6 {[%emt 0:00:31]} 3. g3 {[%emt 0:00:00]} b5 {[%emt 0:00:44]} 4. Bg2 {[%emt 0:15:22]} d5 {[%emt 0:03:36]} 5. b3 {[%emt 0:00:42]} Bb7 {[%emt 0:04:24]} 6. c4 {[%emt 0:03:05]} c5 {[%emt 0:15:50]} 7. cxb5 {[%emt 0:03:53]} Qa5+ {[%emt 0:02:49]} 8. Bd2 {[%emt 0:00:39]} Qxb5 {[%emt 0:00:57]} 9. Nc3 {[%emt 0:00:10]} Qa6 {[%emt 0:01:13]} 10. O-O {[%emt 0:07:22]} Nbd7 {[%emt 0:05:11]} 11. e3 {[%emt 0:08:26]} Be7 {[%emt 0:03:25]} 12. Na4 {[%emt 0:16:56]} Ne4 {[%emt 0:04:28]} 13. dxc5 {[%emt 0:03:13]} Ndxc5 {[%emt 0:03:09]} 14. Nxc5 {[%emt 0:00:14]} Bxc5 {[%emt 0:01:08]} 15. Bc1 {[%emt 0:00:45]} O-O {[%emt 0:13:14]} 16. Bb2 {[%emt 0:00:15]} Ba3 {[%emt 0:02:45]} 17. Bxa3 {[%emt 0:02:02]} Qxa3 {[%emt 0:00:06]} 18. Qc1 {[%emt 0:00:05]} Qxc1 {[%emt 0:16:04]} 19. Rfxc1 {[%emt 0:00:15]} Rfc8 {[%emt 0:00:04]} 20. Nd4 {[%emt 0:05:28]} Nd6 {[%emt 0:01:13]} 21. f4 {[%emt 0:07:01]} Kf8 {[%emt 0:04:38]} 22. Bf1 {[%emt 0:03:51]} Ke7 {[%emt 0:01:31]} 23. b4 {[%emt 0:01:36]} Rxc1 {[%emt 0:07:24]} 24. Rxc1 {[%emt 0:00:02]} Rc8 {[%emt 0:00:09]} 25. Rxc8 {[%emt 0:01:14]} Nxc8 {[%emt 0:00:11]} 26. Kf2 {[%emt 0:03:24]} Nd6 {[%emt 0:00:43]} 27. Bd3 {[%emt 0:00:32]} h6 {[%emt 0:00:17]} 28. a4 {[%emt 0:07:24]} Kd7 {[%emt 0:00:59]} 29. Ke1 {[%emt 0:01:21]} Kc7 {[%emt 0:00:37]} 30. Kd2 {[%emt 0:00:17]} Bc8 {[%emt 0:00:32]} 31. Kc3 {[%emt 0:00:17]} Bd7 {[%emt 0:00:46]} 32. b5 {[%emt 0:01:48]} f6 {[%emt 0:04:50]} 33. Nf3 {[%emt 0:05:41]} Nb7 {[%emt 0:00:36]} 34. Kb4 {[%emt 0:00:12]} Kd6 {[%emt 0:00:20]} 35. a5 {[%emt 0:00:44]} Nc5 {[%emt 0:00:30]} 36. Be2 {[%emt 0:01:08]} Bc8 {[%emt 0:01:50]} 37. Nd4 {[%emt 0:01:46]} Bd7 {[%emt 0:00:27]} 38. Nf3 {[%emt 0:01:14]} Bc8 {[%emt 0:00:15]} 39. Nd4 {[%emt 0:00:02]} Bd7 {[%emt 0:00:09]} 40. a6 {[%emt 0:01:02]} e5 {[%emt 0:32:02]} 41. fxe5+ {[%emt 0:17:55]} fxe5 {[%emt 0:00:00]} 42. Nf3 {[%emt 0:00:03]} Bc8 {[%emt 0:00:00]} 43. Nd2 {[%emt 0:03:25]} Bd7 {[%emt 0:00:00]} 44. Bf1 {[%emt 0:03:05]} Bc8 {[%emt 0:00:00]} 45. Nb1 {[%emt 0:02:03]} Bd7 {[%emt 0:00:00]} 46. Nc3 {[%emt 0:01:29]} d4 {[%emt 0:00:00]} 47. exd4 {[%emt 0:00:07]} exd4 {[%emt 0:00:00]} 48. Nb1 {[%emt 0:00:49]} d3 {[%emt 0:00:00]} 49. Nd2 {[%emt 0:00:27]} Kd5 {[%emt 0:00:29]} 50. Bg2+ {[%emt 0:05:00]} Kd4 {[%emt 0:00:07]} 51. Nf3+ {[%emt 0:00:05]} Kd5 {[%emt 0:01:17]} 52. Nd2+ {[%emt 0:00:24]} Kd4 {[%emt 0:00:07]} 53. Nf3+ {[%emt 0:00:03]} Kd5 {[%emt 0:00:09]} 54. b6 {[%emt 0:02:03]} Nxa6+ {[%emt 0:01:07]} 55. Ka5 {[%emt 0:00:28]} axb6+ {[%emt 0:00:18]} 56. Kxa6 {[%emt 0:00:07]} Ke4 {[%emt 0:00:25]} 57. Kxb6 {[%emt 0:00:43]} Ke3 {[%emt 0:00:19]} 58. Ne5 {[%emt 0:00:42]} d2 {[%emt 0:01:14]} 59. Nc4+ {[%emt 0:00:32]} Ke2 {[%emt 0:00:28]} 60. Nxd2 {[%emt 0:00:25]} Kxd2 {[%emt 0:00:02]} 61. Kc7 {[%emt 0:00:01]} Bf5 {[%emt 0:01:20]} 62. Kd6 {[%emt 0:00:13]} Ke3 {[%emt 0:00:07]} 63. Ke5 {[%emt 0:00:06]} g6 {[%emt 0:00:43]} 64. Bd5 {[%emt 0:00:27]} Kf2 {[%emt 0:01:32]} 65. Kf4 {[%emt 0:00:11]} Kg1 {[%emt 0:01:29]} 66. h4 {[%emt 0:00:09]} h5 {[%emt 0:01:09]} 67. Bf3 {[%emt 0:02:00]} Kh2 {[%emt 0:00:09]} 68. Bxh5 {[%emt 0:00:29]} Kh3 {[%emt 0:00:35]} 69. Be2 {[%emt 0:00:22]} Bc2 {[%emt 0:00:28]} 70. Bf1+ {[%emt 0:00:03]} Kh2 {[%emt 0:00:03]} 71. Bb5 {[%emt 0:00:28]} Kh3 {[%emt 0:00:40]} 72. Bd7+ {[%emt 0:00:22]} Kg2 {[%emt 0:00:01]} 73. g4 {[%emt 0:01:38]} Kh3 {[%emt 0:01:11]} 74. Kg5 {[%emt 0:00:16]} Kg3 {[%emt 0:01:03]} 75. h5 {[%emt 0:00:26]} gxh5 {[%emt 0:00:06]} 76. gxh5 {[%emt 0:00:02]} Bh7 {[%emt 0:00:37]} 77. Bf5 {[%emt 0:00:08]} Bg8 {[%emt 0:00:03]} 78. h6 {[%emt 0:00:15]} Kf3 {[%emt 0:00:12]} 79. Kf6 {[%emt 0:00:40]} Kf4 {[%emt 0:00:09]} 80. Kg7 {[%emt 0:00:43]} Kg5 {[%emt 0:00:02]} 81. Be6 {[%emt 0:00:06]} 1-0

[Event "17th Prague Open 2018"]
[Site "Prague"]
[Date "2018.01.18"]
[Round "8"]
[White "Liu, Yi"]
[Black "Storme, Isak"]
[Result "1/2-1/2"]
[ECO "A46"]
[WhiteElo "2337"]
[BlackElo "2171"]
[Annotator "NA"]
[PlyCount "74"]
[EventDate "2018.??.??"]
[EventType "swiss"]
[EventCountry "CZE"]
[SourceTitle "playchess.com"]
[Source "ChessBase"]
[SourceQuality "1"]
[TimeControl "40/5400+30:1800+30"]

1. d4 {[%emt 0:20:26]} Nf6 {[%emt 0:04:35]} 2. Nf3 {[%emt 0:00:25]} e6 {[%emt 0:00:21]} 3. c4 {[%emt 0:00:55]} c5 {[%emt 0:00:24]} 4. e3 {[%emt 0:00:25]} cxd4 {[%emt 0:01:36]} 5. exd4 {[%emt 0:00:04]} d5 {[%emt 0:00:10]} 6. Nc3 {[%emt 0:00:17]} Bb4 {[%emt 0:01:02]} 7. Bd3 {[%emt 0:05:07]} O-O {[%emt 0:00:40]} 8. O-O {[%emt 0:00:25]} dxc4 {[%emt 0:01:19]} 9. Bxc4 {[%emt 0:01:20]} b6 {[%emt 0:05:35]} 10. Bg5 {[%emt 0:01:38]} Bxc3 {[%emt 0:01:59]} 11. bxc3 {[%emt 0:00:20]} Bb7 {[%emt 0:01:00]} 12. Bd3 {[%emt 0:06:58]} Nbd7 {[%emt 0:01:44]} 13. Qe2 {[%emt 0:02:32] LiveBook: 68 Games} Qc7 {[%emt 0:00:55]} 14. c4 {[%emt 0:04:10]} h6 {[%emt 0:19:21]} 15. Bh4 $11 {[%emt 0:01:00]} Nh5 {[%emt 0:06:41]} 16. Qe3 {[%emt 0:01:57]} Qf4 {[%emt 0:01:43]} 17. Be2 {[%emt 0:03:02]} g5 {[%emt 0:12:12]} 18. Bg3 {[%emt 0:01:21]} Nxg3 {[%emt 0:00:06]} 19. hxg3 {[%emt 0:00:08]} Qxe3 {[%emt 0:00:13]} 20. fxe3 {[%emt 0:00:03]} Kg7 {[%emt 0:01:35]} 21. a4 {[%emt 0:02:01]} Nf6 {[%emt 0:05:07]} 22. Nd2 {[%emt 0:00:46]} Ne4 {[%emt 0:01:35]} 23. Nxe4 {[%emt 0:00:38]} Bxe4 {[%emt 0:00:05]} 24. a5 {[%emt 0:03:28]} bxa5 {[%emt 0:03:45]} 25. Rxa5 {[%emt 0:00:55]} Rfb8 {[%emt 0:01:46]} 26. Rfa1 {[%emt 0:03:34]} Rb2 {[%emt 0:01:01]} 27. R1a2 {[%emt 0:04:04]} Rxa2 {[%emt 0:03:00]} 28. Rxa2 {[%emt 0:00:02]} a5 {[%emt 0:00:10]} 29. Bf3 {[%emt 0:00:17]} Bxf3 {[%emt 0:00:19]} 30. gxf3 {[%emt 0:00:02]} f5 {[%emt 0:03:11]} 31. g4 {[%emt 0:02:02]} Kf6 {[%emt 0:03:37]} 32. e4 {[%emt 0:05:08]} fxg4 {[%emt 0:00:39]} 33. fxg4 {[%emt 0:00:02]} Rd8 {[%emt 0:01:27]} 34. Rd2 {[%emt 0:00:49]} Rc8 {[%emt 0:02:31]} 35. Rc2 {[%emt 0:01:56]} Rd8 {[%emt 0:00:44]} 36. Rd2 {[%emt 0:00:36]} Rc8 {[%emt 0:00:07]} 37. Rc2 {[%emt 0:00:06]} Rd8 {[%emt 0:00:06]} 1/2-1/2

[Event "17th Prague Open 2018"]
[Site "Prague"]
[Date "2018.01.18"]
[Round "8"]
[White "Pushkov, Nikolai"]
[Black "Melamed, Tatjana"]
[Result "1-0"]
[ECO "E11"]
[WhiteElo "2298"]
[BlackElo "2347"]
[Annotator "NA"]
[PlyCount "88"]
[EventDate "2018.??.??"]
[EventType "swiss"]
[EventCountry "CZE"]
[SourceTitle "playchess.com"]
[Source "ChessBase"]
[SourceQuality "1"]
[TimeControl "40/5400+30:1800+30"]

1. Nf3 {[%emt 0:00:00]} Nf6 {[%emt 0:00:20]} 2. c4 {[%emt 0:00:00]} e6 {[%emt 0:01:42]} 3. d4 {[%emt 0:01:34]} Bb4+ {[%emt 0:00:23]} 4. Bd2 {[%emt 0:00:08]} Be7 {[%emt 0:00:20]} 5. Nc3 {[%emt 0:00:47]} d5 {[%emt 0:01:28]} 6. e3 {[%emt 0:02:07]} O-O {[%emt 0:01:38]} 7. Qc2 {[%emt 0:03:46]} c5 {[%emt 0:25:46]} 8. dxc5 {[%emt 0:01:32]} Bxc5 {[%emt 0:00:53]} 9. cxd5 {[%emt 0:07:02]} exd5 {[%emt 0:01:24]} 10. Nb5 {[%emt 0:07:48]} Ne4 {[%emt 0:12:10]} 11. Bd3 {[%emt 0:00:38]} Qe7 {[%emt 0:00:17]} 12. Rc1 {[%emt 0:04:24]} Na6 {[%emt 0:09:52]} 13. O-O {[%emt 0:03:05]} Bg4 {[%emt 0:01:10]} 14. Bxe4 {[%emt 0:08:06]} dxe4 {[%emt 0:01:36]} 15. Nfd4 {[%emt 0:00:08]} Bb6 {[%emt 0:02:07]} 16. h3 {[%emt 0:03:42]} Bd7 {[%emt 0:01:30]} 17. Nc3 $15 {[%emt 0:00:34]} Rfe8 {[%emt 0:03:28]} 18. Nd5 {[%emt 0:02:56]} Qg5 {[%emt 0:00:35]} 19. Nf4 {[%emt 0:01:51]} Nc5 {[%emt 0:03:10]} 20. b4 {[%emt 0:04:49]} Nd3 {[%emt 0:02:51]} 21. h4 {[%emt 0:00:46]} Qxh4 {[%emt 0:04:05]} 22. Nxd3 {[%emt 0:00:04]} exd3 {[%emt 0:00:43]} 23. Qxd3 {[%emt 0:00:03]} Rad8 {[%emt 0:00:21]} 24. Bc3 {[%emt 0:03:59]} Bc6 {[%emt 0:06:02]} 25. Rfd1 {[%emt 0:04:08]} Bc7 {[%emt 0:02:30]} 26. Qf5 {[%emt 0:08:17]} Qh2+ {[%emt 0:04:44]} 27. Kf1 {[%emt 0:00:10]} Qxg2+ {[%emt 0:00:19]} 28. Ke2 {[%emt 0:00:03]} Be4 {[%emt 0:05:55]} 29. Rg1 {[%emt 0:01:33]} Qxg1 {[%emt 0:01:47]} 30. Rxg1 {[%emt 0:00:11]} Bxf5 {[%emt 0:00:05]} 31. Nxf5 {[%emt 0:00:14]} g6 {[%emt 0:01:21]} 32. Nh6+ {[%emt 0:02:32]} Kf8 {[%emt 0:00:15]} 33. Ng4 {[%emt 0:00:08]} f5 {[%emt 0:01:00]} 34. Nf6 {[%emt 0:01:36]} Re7 {[%emt 0:00:28]} 35. Rh1 {[%emt 0:01:41]} h5 {[%emt 0:00:05]} 36. Rg1 {[%emt 0:00:08]} Kf7 {[%emt 0:00:25]} 37. Nh7 {[%emt 0:01:05]} Be5 {[%emt 0:00:55]} 38. Ng5+ {[%emt 0:00:25]} Kf6 {[%emt 0:00:57]} 39. Bxe5+ {[%emt 0:00:10]} Rxe5 {[%emt 0:00:05]} 40. f4 {[%emt 0:00:08]} Ree8 {[%emt 0:32:32]} 41. Nf3 {[%emt 0:30:46]} Re4 {[%emt 0:02:16]} 42. a3 {[%emt 0:00:43]} Rde8 {[%emt 0:00:52]} 43. Ne5 {[%emt 0:00:20]} R4xe5 {[%emt 0:00:53]} 44. fxe5+ {[%emt 0:00:13]} Rxe5 {[%emt 0:00:04]} 1-0

[Event "17th Prague Open 2018"]
[Site "Prague"]
[Date "2018.01.18"]
[Round "8"]
[White "Michalczak, Thomas"]
[Black "Szpar, Milosz"]
[Result "1/2-1/2"]
[ECO "C41"]
[WhiteElo "2208"]
[BlackElo "2367"]
[Annotator "NA"]
[PlyCount "53"]
[EventDate "2018.??.??"]
[EventType "swiss"]
[EventCountry "CZE"]
[SourceTitle "playchess.com"]
[Source "ChessBase"]
[SourceQuality "1"]
[TimeControl "40/5400+30:1800+30"]

1. e4 {[%emt 0:02:14]} d6 {[%emt 0:00:12]} 2. d4 {[%emt 0:00:06]} Nf6 {[%emt 0:00:06]} 3. Nc3 {[%emt 0:00:05]} e5 {[%emt 0:00:05]} 4. Nf3 {[%emt 0:00:05]} Nbd7 {[%emt 0:00:06]} 5. Bc4 {[%emt 0:00:05]} Be7 {[%emt 0:00:15]} 6. O-O {[%emt 0:00:07]} O-O {[%emt 0:00:04]} 7. a4 {[%emt 0:00:04]} c6 {[%emt 0:00:22]} 8. Re1 {[%emt 0:00:06]} b6 {[%emt 0:00:38]} 9. Ba2 {[%emt 0:00:06]} a6 {[%emt 0:00:40]} 10. h3 {[%emt 0:00:05]} Bb7 {[%emt 0:01:16]} 11. dxe5 {[%emt 0:00:16]} dxe5 {[%emt 0:03:05]} 12. Nh4 {[%emt 0:00:07]} Nc5 {[%emt 0:37:48]} 13. Qf3 {[%emt 0:00:25]} Ne6 {[%emt 0:14:41]} 14. Nf5 {[%emt 0:01:42]} Qc7 {[%emt 0:06:40]} 15. Qg3 {[%emt 0:01:49]} Bd8 {[%emt 0:02:06]} (15... Bc5 $14) 16. Bh6 {[%emt 0:04:34]} (16. a5 $16) 16... Nh5 {[%emt 0:02:36]} 17. Qf3 {[%emt 0:00:19]} Nhf4 {[%emt 0:01:43]} 18. Qg4 {[%emt 0:04:00]} Bf6 $14 {[%emt 0:01:47]} 19. h4 {[%emt 0:32:20]} Kh8 {[%emt 0:01:46]} 20. Bg5 {[%emt 0:00:29]} h5 {[%emt 0:03:09]} 21. Qg3 {[%emt 0:03:04]} Bxg5 {[%emt 0:00:19]} 22. hxg5 {[%emt 0:00:14]} g6 {[%emt 0:01:08]} 23. Qh4 {[%emt 0:07:37]} Qd8 {[%emt 0:02:15]} 24. Rad1 {[%emt 0:00:18]} Qxg5 {[%emt 0:00:49]} 25. Qxg5 {[%emt 0:00:12]} Nxg5 {[%emt 0:00:06]} 26. Nd6 {[%emt 0:00:05]} Bc8 {[%emt 0:02:24]} 27. Nc4 {[%emt 0:00:58]} 1/2-1/2

[Event "17th Prague Open 2018"]
[Site "Prague"]
[Date "2018.01.18"]
[Round "8"]
[White "Utiatskaja, Irina"]
[Black "Thakur, Akash"]
[Result "0-1"]
[ECO "C48"]
[WhiteElo "2164"]
[BlackElo "2338"]
[Annotator "NA"]
[PlyCount "90"]
[EventDate "2018.??.??"]
[EventType "swiss"]
[EventCountry "CZE"]
[SourceTitle "playchess.com"]
[Source "ChessBase"]
[SourceQuality "1"]
[TimeControl "40/5400+30:1800+30"]

1. e4 {[%emt 0:00:00]} e5 {[%emt 0:00:10]} 2. Nf3 {[%emt 0:00:00]} Nc6 {[%emt 0:00:08]} 3. Nc3 {[%emt 0:00:00]} Nf6 {[%emt 0:00:33]} 4. Bb5 {[%emt 0:00:12]} Bd6 {[%emt 0:03:32]} 5. d3 {[%emt 0:00:38]} h6 {[%emt 0:00:40] C48: Four Knights: 4 Bb5, replies other than 4...Bb4} 6. a3 {[%emt 0:00:08]} (6. Ne2 a6 7. Ba4 b5 8. Bb3 Na5 9. d4 Nxb3 10. axb3 Nxe4 11. dxe5 Bc5 12. Qd5 Bxf2+ 13. Kf1 {½-½ (49) Inarkiev,E (2689)-Svidler,P (2765) St Petersburg 2017}) 6... O-O {[%emt 0:00:49]} 7. g4 {[%emt 0:02:27]} Nh7 {[%emt 0:19:45] LiveBook: 7 Games} ({Don't play} 7... Nxg4 $6 8. Rg1 $16) (7... Nd4 $11 {remains equal.}) 8. Be3 {[%emt 0:12:20]} a6 {[%emt 0:01:25]} 9. Bc4 $146 {[%emt 0:00:18]} ({Predecessor:} 9. Ba4 b5 10. Bb3 Be7 11. h4 Na5 12. g5 Nxb3 13. cxb3 {1-0 (33) Kadric,D (2511)-Marholev,D (2317) Paracin 2015}) 9... b5 {[%emt 0:00:44]} 10. Ba2 {[%emt 0:04:00]} b4 {[%emt 0:11:36]} 11. axb4 {[%emt 0:00:06]} Nxb4 {[%emt 0:00:11] [#]} 12. Bb3 $1 {[%emt 0:00:04]} Qe7 {[%emt 0:01:06]} (12... Nc6 $142 13. h4 Kh8) 13. h4 {[%emt 0:00:40]} Bc5 {[%emt 0:08:58]} 14. g5 {[%emt 0:13:06]} Bxe3 {[%emt 0:00:20]} 15. fxe3 {[%emt 0:00:03]} Kh8 {[%emt 0:01:53]} 16. gxh6 {[%emt 0:14:49]} gxh6 {[%emt 0:00:14]} 17. Qe2 {[%emt 0:03:02]} d6 $16 {[%emt 0:00:34]} 18. Kd2 {[%emt 0:03:03]} Be6 {[%emt 0:02:58]} 19. Bxe6 {[%emt 0:14:10]} Qxe6 {[%emt 0:00:05]} 20. Ng5 {[%emt 0:08:52]} hxg5 {[%emt 0:17:33]} 21. hxg5 {[%emt 0:00:32]} Rg8 {[%emt 0:00:01]} 22. Rh6 {[%emt 0:00:19]} Rg6 {[%emt 0:00:48]} 23. Rah1 {[%emt 0:02:12]} Rxh6 {[%emt 0:00:23]} 24. Rxh6 {[%emt 0:00:04]} Qe8 {[%emt 0:00:37]} 25. Qh5 {[%emt 0:00:06]} Qg8 {[%emt 0:00:05]} 26. Ne2 {[%emt 0:05:13]} Re8 {[%emt 0:07:18]} 27. Ng3 {[%emt 0:00:19]} Nc6 {[%emt 0:00:13]} 28. c3 {[%emt 0:10:30]} Nd8 {[%emt 0:00:33]} 29. Nf5 {[%emt 0:01:37]} Re6 {[%emt 0:00:42]} 30. d4 {[%emt 0:03:11]} Rxh6 {[%emt 0:00:50]} 31. gxh6 {[%emt 0:00:30]} Qg2+ {[%emt 0:00:07]} 32. Kd3 {[%emt 0:00:11]} Qxe4+ {[%emt 0:00:37]} 33. Kxe4 {[%emt 0:00:31]} Nf6+ {[%emt 0:00:04]} 34. Kf3 {[%emt 0:00:03]} Nxh5 {[%emt 0:00:04]} 35. dxe5 {[%emt 0:00:03]} dxe5 {[%emt 0:02:19]} 36. Ke4 {[%emt 0:00:08]} Nf6+ {[%emt 0:04:37]} 37. Kxe5 {[%emt 0:00:06]} Ng8 {[%emt 0:00:19]} 38. b4 {[%emt 0:01:11]} Kh7 {[%emt 0:00:18]} 39. c4 {[%emt 0:00:11]} Nxh6 {[%emt 0:00:37]} 40. Ne7 {[%emt 0:00:26]} Ng4+ {[%emt 0:35:29]} 41. Kf4 {[%emt 0:30:11]} Nf6 {[%emt 0:02:13]} 42. Kf5 {[%emt 0:00:25]} Kg7 {[%emt 0:01:10]} 43. e4 {[%emt 0:01:08]} Nd7 {[%emt 0:02:57]} 44. e5 {[%emt 0:03:23]} Kf8 {[%emt 0:02:14]} 45. Nc8 {[%emt 0:00:00]} Nb6 {[%emt 0:00:00]} 0-1

[Event "17th Prague Open 2018"]
[Site "Prague"]
[Date "2018.01.18"]
[Round "8"]
[White "Krivanek, Vladimir"]
[Black "Lee, Jun Hyeok"]
[Result "1/2-1/2"]
[ECO "A45"]
[WhiteElo "2076"]
[BlackElo "2305"]
[Annotator "ChessBase"]
[PlyCount "154"]
[EventDate "2018.??.??"]
[EventType "swiss"]
[EventCountry "CZE"]
[SourceTitle "playchess.com"]
[Source "ChessBase"]
[SourceQuality "1"]
[TimeControl "40/5400+30:1800+30"]

1. d4 {[%emt 0:09:57]} Nf6 {[%emt 0:00:13]} 2. Bg5 {[%emt 0:00:07]} Ne4 {[%emt 0:01:24]} 3. Bf4 {[%emt 0:00:22]} d5 {[%emt 0:00:07]} 4. Nd2 {[%emt 0:01:39]} Bf5 {[%emt 0:03:30]} 5. Nxe4 {[%emt 0:02:50]} Bxe4 {[%emt 0:00:51]} 6. Nf3 {[%emt 0:04:20]} e6 {[%emt 0:01:49]} 7. e3 {[%emt 0:02:00]} Bd6 {[%emt 0:02:06]} 8. Bg3 {[%emt 0:08:15]} c5 {[%emt 0:04:31]} 9. Nd2 {[%emt 0:05:28]} Bg6 {[%emt 0:01:10]} 10. dxc5 {[%emt 0:03:02]} Bxc5 {[%emt 0:06:47]} 11. Bxb8 {[%emt 0:02:06]} Qxb8 {[%emt 0:01:59]} 12. Bb5+ {[%emt 0:00:10]} Ke7 {[%emt 0:00:11]} 13. Nb3 {[%emt 0:12:03]} Bd6 {[%emt 0:01:47]} 14. h4 {[%emt 0:00:55]} Qc7 {[%emt 0:10:53]} 15. c3 {[%emt 0:08:16]} Qb6 {[%emt 0:05:38]} 16. Be2 {[%emt 0:04:36]} Be5 {[%emt 0:05:08]} 17. Qd2 {[%emt 0:05:32]} h5 {[%emt 0:05:44]} 18. Bd3 {[%emt 0:01:29]} Rh6 {[%emt 0:03:37]} 19. Bxg6 {[%emt 0:01:43]} Rxg6 {[%emt 0:00:08]} 20. g3 {[%emt 0:00:14]} Rc8 {[%emt 0:15:02]} 21. O-O-O {[%emt 0:03:58]} Rg4 {[%emt 0:02:26]} 22. f4 {[%emt 0:00:58]} Bd6 {[%emt 0:00:25]} 23. Rhg1 {[%emt 0:00:55]} Rc4 {[%emt 0:02:29]} 24. Kb1 {[%emt 0:02:04]} Bc5 {[%emt 0:04:29]} 25. Nd4 {[%emt 0:01:33]} Bxd4 {[%emt 0:00:57]} 26. exd4 {[%emt 0:00:40]} g6 {[%emt 0:01:52]} 27. Qe3 {[%emt 0:03:05]} Qa5 {[%emt 0:02:42]} 28. Rg2 {[%emt 0:01:12]} Rc6 {[%emt 0:00:26]} 29. Rc2 {[%emt 0:00:32]} b5 {[%emt 0:02:26]} 30. Rdc1 {[%emt 0:01:23]} Qd8 {[%emt 0:02:42]} 31. Qd3 {[%emt 0:01:51]} a6 {[%emt 0:00:58]} 32. b3 {[%emt 0:00:17]} Rd6 {[%emt 0:00:39]} 33. Qe3 {[%emt 0:01:37]} Qh8 {[%emt 0:01:46]} 34. Rd1 {[%emt 0:01:45]} Qf6 {[%emt 0:03:14]} 35. Kb2 {[%emt 0:00:48]} Qf5 {[%emt 0:01:05]} 36. Re2 {[%emt 0:04:00]} Rc6 {[%emt 0:01:59]} 37. Rd3 {[%emt 0:02:20]} Kf8 {[%emt 0:01:57]} 38. Qd2 {[%emt 0:00:34]} Qf6 {[%emt 0:01:07]} 39. Rde3 {[%emt 0:00:28]} Qd8 {[%emt 0:00:43]} 40. Re1 {[%emt 0:01:17]} a5 {[%emt 0:32:01]} 41. Qe2 {[%emt 0:31:18]} Qb6 {[%emt 0:01:02]} 42. Rd3 {[%emt 0:00:00]} Qa6 {[%emt 0:00:00]} 43. Rf3 {[%emt 0:00:00]} Kg8 {[%emt 0:00:00]} 44. Rc1 {[%emt 0:00:00]} Qb6 {[%emt 0:00:00]} 45. Qe5 {[%emt 0:00:00]} a4 {[%emt 0:00:00]} 46. bxa4 {[%emt 0:00:00]} Rc8 {[%emt 0:00:00]} 47. Ka1 {[%emt 0:00:00]} bxa4 {[%emt 0:00:00]} 48. Rb1 {[%emt 0:00:00]} Qa6 {[%emt 0:00:00]} 49. Qe3 {[%emt 0:00:00]} Qd6 {[%emt 0:00:00]} 50. Qd2 {[%emt 0:00:00]} a3 {[%emt 0:00:16]} 51. Qc1 {[%emt 0:00:00]} Qa6 {[%emt 0:00:31]} 52. Qd1 {[%emt 0:00:00]} Ra8 {[%emt 0:01:24]} 53. Rb4 {[%emt 0:00:00]} Qc8 {[%emt 0:00:32]} 54. Re3 {[%emt 0:00:00]} Qc6 {[%emt 0:02:00]} 55. Kb1 {[%emt 0:00:36]} Kg7 {[%emt 0:00:34]} 56. Kc1 {[%emt 0:01:03]} Qc7 {[%emt 0:00:16]} 57. Kd2 {[%emt 0:00:39]} Rb8 {[%emt 0:00:54]} 58. Qb3 {[%emt 0:00:51]} Ra8 {[%emt 0:01:16]} 59. Rb7 {[%emt 0:01:30]} Qd8 {[%emt 0:00:37]} 60. Qb4 {[%emt 0:02:16]} Qf6 {[%emt 0:00:26]} 61. Qd6 {[%emt 0:00:30]} Kg8 {[%emt 0:01:04]} 62. Qc7 {[%emt 0:02:56]} Qf5 {[%emt 0:01:03]} 63. Re5 {[%emt 0:00:48]} Qf6 {[%emt 0:00:05]} 64. Re3 {[%emt 0:00:29]} Qf5 {[%emt 0:00:05]} 65. Rb8+ {[%emt 0:01:15]} Rxb8 {[%emt 0:00:04]} 66. Qxb8+ {[%emt 0:00:02]} Kg7 {[%emt 0:00:26]} 67. Re5 {[%emt 0:00:44]} Qf6 {[%emt 0:00:12]} 68. Rg5 {[%emt 0:00:29]} Rxg5 {[%emt 0:01:17]} 69. hxg5 {[%emt 0:00:05]} Qe7 {[%emt 0:00:14]} 70. Kc2 {[%emt 0:00:39]} f6 {[%emt 0:00:34]} 71. gxf6+ {[%emt 0:00:10]} Kxf6 {[%emt 0:00:04]} 72. Qe5+ {[%emt 0:01:29]} Kf7 {[%emt 0:00:01]} 73. Kb3 {[%emt 0:00:10]} Qb7+ {[%emt 0:01:44]} 74. Kxa3 {[%emt 0:00:08]} Qa6+ {[%emt 0:00:07]} 75. Kb3 {[%emt 0:00:20]} Qb5+ {[%emt 0:00:02]} 76. Kc2 {[%emt 0:00:27]} Qa4+ {[%emt 0:00:05]} 77. Kb2 {[%emt 0:00:20]} Qb5+ {[%emt 0:00:04]} 1/2-1/2